fUSD/lending_fUSD_20240915
["ID","MTS","AMOUNT","RATE_DAILY","PERIOD"]
[338190529,1726379467509,-150.0,0.000134,2]
[338190530,1726379467519,-150.0,0.000134,2]
[338190531,1726379467528,-150.0,0.000134,2]
[338190532,1726379467537,-150.0,0.000134,2]
[338190533,1726379467547,-150.0,0.000134,2]
[338190534,1726379467556,-150.0,0.000134,2]
[338190535,1726379467566,-300.41,0.000134,2]
[338190536,1726379467576,-427.89,0.000134,2]
[338190537,1726379467586,-150.0,0.000134,2]
[338190538,1726379467595,-315.42,0.000134,2]
[338190539,1726379467605,-150.6,0.000134,2]
[338190540,1726379467615,-752.91,0.000134,2]
[338190541,1726379467625,-150.0,0.000134,2]
[338190542,1726379467635,-150.0,0.000134,2]
[338190543,1726379467644,-752.91,0.000134,2]
[338190544,1726379467654,-150.0,0.000134,2]
[338190545,1726379467664,-427.89,0.000134,2]
[338190546,1726379467674,-150.0,0.000134,2]
[338190547,1726379467683,-150.0,0.000134,2]
[338190548,1726379467693,-150.0,0.000134,2]
[338190549,1726379467703,-150.0,0.000134,2]
[338190550,1726379467713,-427.89,0.000134,2]
[338190551,1726379467724,-150.0,0.000134,2]
[338190552,1726379467734,-150.0,0.000134,2]
[338190553,1726379467743,-752.91,0.000134,2]
[338190554,1726379467753,-150.0,0.000134,2]
[338190555,1726379467763,-150.0,0.000134,2]
[338190556,1726379467772,-150.0,0.000134,2]
[338190557,1726379467782,-427.89,0.000134,2]
[338190558,1726379467791,-150.0,0.000134,2]
[338190559,1726379467801,-150.0,0.000134,2]
[338190560,1726379467811,-150.0,0.000134,2]
[338190561,1726379467820,-150.0,0.000134,2]
[338190562,1726379467830,-150.0,0.000134,2]
[338190563,1726379467839,-150.0,0.000134,2]
[338190564,1726379467848,-752.91,0.000134,2]
[338190565,1726379467858,-150.0,0.000134,2]
[338190566,1726379467868,-427.89,0.000134,2]
[338190567,1726379467879,-752.91,0.000134,2]
[338190568,1726379467889,-150.0,0.000134,2]
[338190569,1726379467899,-150.0,0.000134,2]
[338190570,1726379467908,-150.0,0.000134,2]
[338190571,1726379467918,-714.28,0.000134,2]
[338190572,1726379467927,-150.0,0.000134,2]
[338190573,1726379467936,-427.89,0.000134,2]
[338190574,1726379467946,-150.0,0.000134,2]
[338190575,1726379467956,-150.0,0.000134,2]
[338190576,1726379467965,-357.78,0.000134,2]
[338190577,1726379467976,-150.0,0.000134,2]
[338190578,1726379467985,-150.0,0.000134,2]
[338190579,1726379467995,-150.0,0.000134,2]
[338190580,1726379468005,-427.89,0.000134,2]
[338190581,1726379468014,-150.0,0.000134,2]
[338190582,1726379468024,-357.78,0.000134,2]
[338190583,1726379468033,-150.0,0.000134,2]
[338190584,1726379468043,-150.0,0.000134,2]
[338190585,1726379468052,-150.0,0.000134,2]
[338190586,1726379468061,-150.0,0.000134,2]
[338190587,1726379468071,-150.0,0.000134,2]
[338190588,1726379468080,-150.0,0.000134,2]
[338190589,1726379468090,-357.78,0.000134,2]
[338190590,1726379468099,-752.91,0.000134,2]
[338190591,1726379468109,-150.0,0.000134,2]
[338190592,1726379468119,-427.8,0.000134,2]
[338190593,1726379468129,-427.89,0.000134,2]
[338190594,1726379468140,-150.0,0.000134,2]
[338190595,1726379468150,-150.0,0.000134,2]
[338190596,1726379468159,-150.0,0.000134,2]
[338190597,1726379468169,-150.0,0.000134,2]
[338190598,1726379468178,-150.0,0.000134,2]
[338190599,1726379468188,-1000.0,0.000134,2]
[338190600,1726379468196,-150.0,0.000134,2]
[338190601,1726379468206,-357.78,0.000134,2]
[338190602,1726379468215,-752.67,0.000134,2]
[338190603,1726379468236,-427.89,0.000134,2]
[338190604,1726379468246,-150.0,0.000134,2]
[338190605,1726379468255,-150.0,0.000134,2]
[338190606,1726379468265,-427.89,0.000134,2]
[338190607,1726379468274,-357.78,0.000134,2]
[338190608,1726379468283,-752.91,0.000134,2]
[338190609,1726379468293,-150.0,0.000134,2]
[338190610,1726379468303,-226.0,0.000134,2]
[338190611,1726379468314,-752.91,0.000134,2]
[338190612,1726379468323,-357.78,0.000134,2]
[338190613,1726379468332,-427.89,0.000134,2]
[338190614,1726379468341,-150.0,0.000134,2]
[338190615,1726379468351,-427.89,0.000134,2]
[338190616,1726379468361,-150.0,0.000134,2]
[338190617,1726379468370,-752.91,0.000134,2]
[338190618,1726379468380,-357.78,0.000134,2]
[338190619,1726379468394,-150.0,0.000134,2]
[338190620,1726379468403,-427.89,0.000134,2]
[338190621,1726379468413,-752.91,0.000134,2]
[338190622,1726379468423,-359.0,0.000134,2]
[338190623,1726379468433,-427.89,0.000134,2]
[338190624,1726379468443,-150.0,0.000134,2]
[338190625,1726379468453,-752.91,0.000134,2]
[338190626,1726379468462,-357.78,0.000134,2]
[338190627,1726379468474,-752.91,0.000134,2]
[338190628,1726379468484,-427.89,0.000134,2]
[338190629,1726379468493,-357.78,0.000134,2]
[338190630,1726379468503,-150.0,0.000134,2]
[338190631,1726379468514,-150.0,0.00013403,2]
[338190632,1726379468523,-1500.0,0.00013407,2]
[338190633,1726379468534,-150.0,0.00013408,2]
[338190634,1726379468544,-150.0,0.00013409,2]
[338190635,1726379468554,-150.0,0.00013416,2]
[338190636,1726379468564,-1500.0,0.00013418,2]
[338190637,1726379468574,-1589.15194205,0.00013418,2]
[338190638,1726379468585,-150.0,0.00013418,2]
[338190639,1726379468595,-150.0,0.00013421,2]
[338190640,1726379468605,-150.0,0.00013422,2]
[338190641,1726379468615,-694.45,0.00013424,2]
[338190642,1726379468625,-694.45,0.00013424,2]
[338190643,1726379468636,-150.0,0.00013427,2]
[338190644,1726379468646,-150.0,0.00013427,2]
[338190645,1726379468656,-150.0,0.00013428,2]
[338190646,1726379468667,-150.0,0.0001343,2]
[338190647,1726379468677,-150.0,0.00013433,2]
[338190648,1726379468687,-150.0,0.00013434,2]
[338190649,1726379468697,-1500.0,0.00013437,2]
[338190650,1726379468707,-150.0,0.0001344,2]
[338190651,1726379468716,-150.0,0.00013442,2]
[338190652,1726379468726,-150.0,0.00013443,2]
[338190653,1726379468736,-150.0,0.00013447,2]
[338190654,1726379468746,-150.0,0.00013447,2]
[338190655,1726379468756,-150.0,0.00013448,2]
[338190656,1726379468766,-150.0,0.00013451,2]
[338190657,1726379468775,-150.0,0.00013453,2]
[338190658,1726379468784,-1261.0,0.00013454,2]
[338190659,1726379468793,-1548.0,0.00013454,2]
[338190660,1726379468803,-448.0,0.00013454,2]
[338190661,1726379468812,-624.0,0.00013454,2]
[338190662,1726379468821,-558.707,0.00013454,2]
[338190663,1726379468830,-940.66,0.00013454,2]
[338190664,1726379468839,-863.208,0.00013454,2]
[338190665,1726379468848,-150.0,0.00013454,2]
[338190666,1726379468857,-1902.0,0.00013454,2]
[338190667,1726379468867,-553.0,0.00013454,2]
[338190668,1726379468876,-397.04138093,0.00013454,2]
[338190669,1726379468889,-1092.27862809,0.00013454,2]
[338190670,1726379468900,-269.44440974,0.00013454,2]
[338190671,1726379468911,-1586.23558124,0.00013454,2]
[338190672,1726379468920,-22.68028753,0.00013454,2]
[338190673,1726379468931,-1106.31971247,0.00013454,2]
[338190674,1726379468940,-248.0,0.00013454,2]
[338190675,1726379468950,-806.0,0.00013454,2]
[338190676,1726379468959,-1918.0,0.00013454,2]
[338190677,1726379468969,-13481.0,0.00013454,2]
[338190678,1726379468978,-203.97589521,0.00013454,2]
[338190679,1726379468993,-942.02410479,0.00013454,2]
[338190680,1726379469003,-5863.0,0.00013454,2]
[338190681,1726379469012,-150.0,0.00013454,2]
[338190682,1726379469022,-250.0,0.00013454,2]
[338190683,1726379469032,-150.0,0.00013454,2]
[338190684,1726379469041,-1080.0,0.00013454,2]
[338190685,1726379469051,-150.0,0.00013457,2]
[338190686,1726379469060,-150.0,0.00013459,2]
[338190687,1726379469070,-1500.0,0.00013461,2]
[338190688,1726379469080,-150.0,0.00013468,2]
[338190689,1726379469089,-150.0,0.00013469,2]
[338190690,1726379469098,-150.0,0.0001347,2]
[338190691,1726379469108,-150.0,0.0001347,2]
[338190692,1726379469117,-487.03368496,0.00013476,2]
[338190693,1726379469127,-150.0,0.00013477,2]
[338190694,1726379469136,-1500.0,0.00013477,2]
[338190695,1726379469146,-150.0,0.00013478,2]
[338190696,1726379469156,-150.0,0.00013479,2]
[338190697,1726379469165,-150.0,0.00013479,2]
[338190698,1726379469174,-169.71,0.0001348,2]
[338190699,1726379469184,-150.0,0.00013481,2]
[338190700,1726379469194,-150.0,0.00013481,2]
[338190701,1726379469204,-150.0,0.00013483,2]
[338190702,1726379469213,-150.0,0.00013485,2]
[338190703,1726379469224,-150.0,0.00013486,2]
[338190704,1726379469233,-150.0,0.00013489,2]
[338190705,1726379469243,-150.0,0.00013493,2]
[338190706,1726379469253,-150.0,0.00013493,2]
[338190707,1726379469262,-150.0,0.00013494,2]
[338190708,1726379469271,-150.0,0.00013497,2]
[338190709,1726379469281,-1000.0,0.000135,2]
[338190710,1726379469291,-357.78,0.000135,2]
[338190711,1726379469300,-357.78,0.000135,2]
[338190712,1726379469309,-357.78,0.000135,2]
[338190713,1726379469319,-357.78,0.000135,2]
[338190714,1726379469328,-357.78,0.000135,2]
[338190715,1726379469338,-357.78,0.000135,2]
[338190716,1726379469348,-752.91,0.000135,2]
[338190717,1726379469357,-742.56,0.000135,2]
[338190718,1726379469367,-150.0,0.000135,2]
[338190719,1726379469376,-369.56,0.000135,2]
[338190720,1726379469386,-752.91,0.000135,2]
[338190721,1726379469396,-357.78,0.000135,2]
[338190722,1726379469405,-150.0,0.000135,2]
[338190723,1726379469415,-752.91,0.000135,2]
[338190724,1726379469424,-427.89,0.000135,2]
[338190725,1726379469434,-752.91,0.000135,2]
[338190726,1726379469443,-427.89,0.000135,2]
[338190727,1726379469453,-427.89,0.000135,2]
[338190728,1726379469462,-752.91,0.000135,2]
[338190729,1726379469472,-427.89,0.000135,2]
[338190730,1726379469482,-752.91,0.000135,2]
[338190731,1726379469492,-752.91,0.000135,2]
[338190732,1726379469501,-752.91,0.000135,2]
[338190733,1726379469513,-150.0,0.000135,2]
[338190734,1726379469523,-150.0,0.000135,2]
[338190735,1726379469532,-150.0,0.000135,2]
[338190736,1726379469542,-752.91,0.000135,2]
[338190737,1726379469552,-150.0,0.000135,2]
[338190738,1726379469561,-150.0,0.000135,2]
[338190739,1726379469571,-150.0,0.000135,2]
[338190740,1726379469580,-150.0,0.000135,2]
[338190741,1726379469590,-427.89,0.000135,2]
[338190742,1726379469600,-150.0,0.00013502,2]
[338190743,1726379469609,-1500.0,0.00013503,2]
[338190744,1726379469619,-150.0,0.00013508,2]
[338190745,1726379469628,-546.36,0.00013515,2]
[338190746,1726379469637,-453.22309446,0.00013537,2]
[338190747,1726379469647,-233.539853,0.00013537,2]
[338190748,1726379469656,-152.795297,0.00013538,2]
[338190749,1726379469666,-201.0,0.0001354,2]
[338190750,1726379469675,-1085.36,0.00013542,2]
[338190751,1726379469685,-1858.68,0.00013542,2]
[338190752,1726379469694,-1698.45,0.00013542,2]
[338190753,1726379469704,-500.0,0.00013542,2]
[338190754,1726379469714,-2307.01,0.00013542,2]
[338190755,1726379469724,-2157.82,0.00013542,2]
[338190756,1726379469734,-500.0,0.00013542,2]
[338190757,1726379469744,-3517.22,0.00013542,2]
[338190758,1726379469754,-2212.75,0.00013542,2]
[338190759,1726379469764,-500.0,0.00013542,2]
[338190760,1726379469774,-500.0,0.00013542,2]
[338190761,1726379469784,-2038.62,0.00013542,2]
[338190762,1726379469794,-2681.86,0.00013542,2]
[338190763,1726379469804,-1148.88,0.00013542,2]
[338190764,1726379469814,-1187.63,0.00013542,2]
[338190765,1726379469824,-1625.64,0.00013542,2]
[338190766,1726379469834,-2078.94,0.00013542,2]
[338190767,1726379469848,-500.0,0.00013542,2]
[338190768,1726379469858,-537.43,0.00013542,2]
[338190769,1726379469875,-500.0,0.00013542,2]
[338190770,1726379469894,-502.45,0.00013542,2]
[338190771,1726379469912,-500.0,0.00013542,2]
[338190772,1726379469930,-1779.09,0.00013542,2]
[338190773,1726379469948,-500.0,0.00013542,2]
[338190774,1726379469957,-667.72,0.00013542,2]
[338190775,1726379469970,-500.0,0.00013542,2]
[338190776,1726379469981,-500.0,0.00013542,2]
[338190777,1726379469994,-500.0,0.00013542,2]
[338190778,1726379470009,-708.3,0.00013542,2]
[338190779,1726379470027,-1087.38,0.00013542,2]
[338190780,1726379470046,-500.0,0.00013542,2]
[338190781,1726379470064,-500.0,0.00013542,2]
[338190782,1726379470083,-500.0,0.00013542,2]
[338190783,1726379470102,-543.62,0.00013542,2]
[338190784,1726379470120,-434.52479883,0.00013542,2]
[338190785,1726379470139,-2096.77,0.00013542,2]
[338190786,1726379470157,-500.0,0.00013542,2]
[338190787,1726379470177,-500.0,0.00013542,2]
[338190788,1726379470196,-500.0,0.00013542,2]
[338190789,1726379470215,-1590.3,0.00013542,2]
[338190790,1726379470234,-2727.92,0.00013542,2]
[338190791,1726379470244,-1405.66,0.00013542,2]
[338190792,1726379470254,-500.0,0.00013542,2]
[338190793,1726379470264,-2439.56,0.00013542,2]
[338190794,1726379470273,-500.0,0.00013542,2]
[338190795,1726379470283,-500.0,0.00013542,2]
[338190796,1726379470292,-957.53,0.00013542,2]
[338190797,1726379470301,-500.0,0.00013542,2]
[338190798,1726379470311,-1408.85,0.00013542,2]
[338190799,1726379470320,-500.0,0.00013542,2]
[338190800,1726379470329,-500.0,0.00013542,2]
[338190801,1726379470339,-2418.25,0.00013542,2]
[338190802,1726379470349,-2076.88,0.00013542,2]
[338190803,1726379470358,-500.0,0.00013542,2]
[338190804,1726379470368,-500.0,0.00013542,2]
[338190805,1726379470379,-500.0,0.00013542,2]
[338190806,1726379470390,-1146.07,0.00013542,2]
[338190807,1726379470400,-500.0,0.00013542,2]
[338190808,1726379470628,-500.0,0.00013542,2]
[338190809,1726379470649,-1765.34,0.00013542,2]
[338190810,1726379470659,-1556.02,0.00013542,2]
[338190811,1726379470669,-500.0,0.00013542,2]
[338190812,1726379470678,-503.79,0.00013542,2]
[338190813,1726379470687,-1884.38,0.00013542,2]
[338190814,1726379470696,-500.0,0.00013542,2]
[338190815,1726379470706,-7775.15,0.00013542,2]
[338190816,1726379470715,-673.69,0.00013542,2]
[338190817,1726379470725,-500.0,0.00013542,2]
[338190818,1726379470735,-500.0,0.00013542,2]
[338190819,1726379470745,-2323.18,0.00013542,2]
[338190820,1726379470754,-500.0,0.00013542,2]
[338190821,1726379470764,-500.0,0.00013542,2]
[338190822,1726379470773,-500.0,0.00013542,2]
[338190823,1726379470783,-2982.65,0.00013542,2]
[338190824,1726379470792,-831.708207,0.00013542,2]
[338190825,1726379470802,-500.0,0.00013542,2]
[338190826,1726379470811,-769.136463,0.00013542,2]
[338190827,1726379470821,-831.708207,0.00013542,2]
[338190828,1726379470830,-1059.49,0.00013542,2]
[338190829,1726379470839,-769.136463,0.00013542,2]
[338190830,1726379470849,-2433.35,0.00013542,2]
[338190831,1726379470858,-506.75,0.00013542,2]
[338190832,1726379470867,-1997.8,0.00013542,2]
[338190833,1726379470877,-577.16,0.00013542,2]
[338190834,1726379470886,-740.76,0.00013542,2]
[338190835,1726379470895,-500.0,0.00013542,2]
[338190836,1726379470904,-1273.29,0.00013542,2]
[338190837,1726379470914,-500.0,0.00013542,2]
[338190838,1726379470923,-500.0,0.00013542,2]
[338190839,1726379470932,-500.0,0.00013542,2]
[338190840,1726379470941,-1068.75,0.00013542,2]
[338190841,1726379470951,-500.0,0.00013542,2]
[338190842,1726379470960,-500.0,0.00013542,2]
[338190843,1726379470970,-274.59996839,0.00013542,2]
[338190844,1726379470984,-1373.41003161,0.00013542,2]
[338190845,1726379470993,-1035.9414994,0.00013542,2]
[338190846,1726379471006,-28.9085006,0.00013542,2]
[338190847,1726379471016,-548.0814994,0.00013542,2]
[338190848,1726379471027,-3.2985006,0.00013542,2]
[338190849,1726379471036,-600.53,0.00013542,2]
[338190850,1726379471046,-500.0,0.00013542,2]
[338190851,1726379471055,-1208.38,0.00013542,2]
[338190852,1726379471066,-1984.02,0.00013542,2]
[338190853,1726379471075,-500.0,0.00013542,2]
[338190854,1726379471085,-500.0,0.00013542,2]
[338190855,1726379471094,-972.64,0.00013543,2]
[338190856,1726379471105,-500.0,0.00013543,2]
[338190857,1726379471115,-558.26,0.00013543,2]
[338190858,1726379471124,-500.0,0.00013543,2]
[338190859,1726379471134,-1653.33,0.00013543,2]
[338190860,1726379471143,-500.0,0.00013543,2]
[338190861,1726379471153,-500.0,0.00013543,2]
[338190862,1726379471162,-500.0,0.00013543,2]
[338190863,1726379471172,-500.0,0.00013543,2]
[338190864,1726379471181,-4293.76,0.00013543,2]
[338190865,1726379471192,-500.0,0.00013543,2]
[338190866,1726379471201,-500.0,0.00013543,2]
[338190867,1726379471211,-500.0,0.00013543,2]
[338190868,1726379471222,-3798.51,0.00013543,2]
[338190869,1726379471231,-521.9,0.00013543,2]
[338190870,1726379471240,-500.0,0.00013543,2]
[338190871,1726379471249,-1723.62359049,0.00013543,2]
[338190872,1726379471262,-385.66261705,0.00013543,2]
[338190873,1726379471274,-923.08443828,0.00013543,2]
[338190874,1726379471285,-1103.41846136,0.00013543,2]
[338190875,1726379471297,-467.84357261,0.00013543,2]
[338190876,1726379471318,-729.19012443,0.00013543,2]
[338190877,1726379471330,-91.12719578,0.00013543,2]
[338190878,1726379471340,-500.0,0.00013543,2]
[338190879,1726379471349,-1050.17532422,0.00013543,2]
[338190880,1726379471361,-656.66,0.00013543,2]
[338190881,1726379471462,-410.19467578,0.00013543,2]
[338190882,1726379471474,-20000.0,0.00013543,2]
[338190883,1726379471488,-500.0,0.00013543,2]
[338190884,1726379471498,-2506.74,0.00013543,2]
[338190885,1726379471507,-1328.63,0.00013543,2]
[338190886,1726379471517,-500.0,0.00013543,2]
[338190887,1726379471528,-2903.74,0.00013543,2]
[338190888,1726379471538,-500.0,0.00013543,2]
[338190889,1726379471548,-500.0,0.00013543,2]
[338190890,1726379471558,-6921.28,0.00013543,2]
[338190891,1726379471568,-2350.7,0.00013543,2]
[338190892,1726379471578,-500.0,0.00013543,2]
[338190893,1726379471587,-500.0,0.00013543,2]
[338190894,1726379471596,-2398.99,0.00013543,2]
[338190895,1726379471606,-500.0,0.00013543,2]
[338190896,1726379471615,-500.0,0.00013543,2]
[338190897,1726379471625,-1392.99,0.00013543,2]
[338190898,1726379471634,-3709.42,0.00013543,2]
[338190899,1726379471644,-500.0,0.00013543,2]
[338190900,1726379471653,-1673.69,0.00013543,2]
[338190901,1726379471663,-500.0,0.00013543,2]
[338190902,1726379471672,-581.36,0.00013543,2]
[338190903,1726379471681,-500.0,0.00013543,2]
[338190904,1726379471691,-500.0,0.00013543,2]
[338190905,1726379471700,-3232.38,0.00013543,2]
[338190906,1726379471709,-500.0,0.00013543,2]
[338190907,1726379471720,-1664.27,0.00013543,2]
[338190908,1726379471729,-730.53,0.00013543,2]
[338190909,1726379471739,-500.0,0.00013543,2]
[338190910,1726379471748,-500.0,0.00013543,2]
[338190911,1726379471757,-2430.19,0.00013543,2]
[338190912,1726379471767,-1128.92,0.00013543,2]
[338190913,1726379471777,-1666.25,0.00013543,2]
[338190914,1726379471785,-1528.09,0.00013543,2]
[338190915,1726379471794,-500.0,0.00013543,2]
[338190916,1726379471803,-500.0,0.00013543,2]
[338190917,1726379471813,-500.0,0.00013543,2]
[338190918,1726379471823,-1390.09,0.00013543,2]
[338190919,1726379471833,-500.0,0.00013543,2]
[338190920,1726379471844,-151.0,0.00013543,2]
[338190921,1726379471854,-151.0,0.00013543,2]
[338190922,1726379471864,-500.0,0.00013543,2]
[338190923,1726379471874,-924.39,0.00013543,2]
[338190924,1726379471883,-500.0,0.00013543,2]
[338190925,1726379471893,-1728.19,0.00013543,2]
[338190926,1726379471902,-500.0,0.00013543,2]
[338190927,1726379471912,-500.0,0.00013543,2]
[338190928,1726379471922,-622.78,0.00013543,2]
[338190929,1726379471931,-500.0,0.00013543,2]
[338190930,1726379471940,-500.0,0.00013543,2]
[338190931,1726379471950,-1456.66,0.00013543,2]
[338190932,1726379471960,-372.69136354,0.00013543,2]
[338190933,1726379471970,-500.0,0.00013543,2]
[338190934,1726379471980,-500.0,0.00013543,2]
[338190935,1726379471990,-500.0,0.00013543,2]
[338190936,1726379471999,-500.0,0.00013543,2]
[338190937,1726379472008,-500.0,0.00013543,2]
[338190938,1726379472018,-1306.78,0.00013543,2]
[338190939,1726379472027,-500.0,0.00013543,2]
[338190940,1726379472037,-500.0,0.00013543,2]
[338190941,1726379472046,-500.0,0.00013543,2]
[338190942,1726379472055,-884.41,0.00013543,2]
[338190943,1726379472064,-500.0,0.00013543,2]
[338190944,1726379472074,-500.0,0.00013543,2]
[338190945,1726379472083,-500.0,0.00013543,2]
[338190946,1726379472092,-500.0,0.00013543,2]
[338190947,1726379472101,-1735.4,0.00013543,2]
[338190948,1726379472111,-500.0,0.00013543,2]
[338190949,1726379472121,-500.0,0.00013543,2]
[338190950,1726379472130,-500.0,0.00013543,2]
[338190951,1726379472139,-500.0,0.00013543,2]
[338190952,1726379472148,-500.0,0.00013543,2]
[338190953,1726379472158,-500.0,0.00013543,2]
[338190954,1726379472167,-500.0,0.00013543,2]
[338190955,1726379472177,-500.0,0.00013543,2]
[338190956,1726379472186,-500.0,0.00013543,2]
[338190957,1726379472196,-500.0,0.00013543,2]
[338190958,1726379472206,-555.4,0.00013543,2]
[338190959,1726379472216,-500.0,0.00013543,2]
[338190960,1726379472226,-500.71936291,0.00013543,2]
[338190961,1726379472235,-500.0,0.00013543,2]
[338190962,1726379472245,-878.31,0.00013543,2]
[338190963,1726379472254,-905.95,0.00013543,2]
[338190964,1726379472264,-500.0,0.00013543,2]
[338190965,1726379472274,-500.0,0.00013543,2]
[338190966,1726379472283,-500.0,0.00013543,2]
[338190967,1726379472292,-1062.81,0.00013543,2]
[338190968,1726379472302,-500.0,0.00013543,2]
[338190969,1726379472311,-1704.72,0.00013543,2]
[338190970,1726379472321,-2294.73,0.00013543,2]
[338190971,1726379472331,-500.0,0.00013543,2]
[338190972,1726379472340,-430.92574631,0.00013543,2]
[338190973,1726379472349,-1464.99,0.00013543,2]
[338190974,1726379472359,-500.0,0.00013543,2]
[338190975,1726379472369,-641.23,0.00013543,2]
[338190976,1726379472378,-500.0,0.00013543,2]
[338190977,1726379472387,-151.0,0.00013543,2]
[338190978,1726379472399,-500.0,0.00013543,2]
[338190979,1726379472409,-500.0,0.00013543,2]
[338190980,1726379472418,-1581.49,0.00013543,2]
[338190981,1726379472428,-500.0,0.00013543,2]
[338190982,1726379472438,-500.0,0.00013543,2]
[338190983,1726379472447,-500.0,0.00013543,2]
[338190984,1726379472456,-500.0,0.00013543,2]
[338190985,1726379472467,-1342.04,0.00013543,2]
[338190986,1726379472477,-500.0,0.00013543,2]
[338190987,1726379472486,-500.0,0.00013543,2]
[338190988,1726379472495,-500.0,0.00013543,2]
[338190989,1726379472505,-1483.75,0.00013543,2]
[338190990,1726379472514,-500.0,0.00013543,2]
[338190991,1726379472524,-2196.03,0.00013543,2]
[338190992,1726379472533,-1895.7,0.00013543,2]
[338190993,1726379472543,-887.8,0.00013543,2]
[338190994,1726379472552,-500.0,0.00013543,2]
[338190995,1726379472562,-500.0,0.00013543,2]
[338190996,1726379472572,-1823.41,0.00013543,2]
[338190997,1726379472582,-500.0,0.00013543,2]
[338190998,1726379472591,-500.0,0.00013543,2]
[338190999,1726379472601,-537.75,0.00013543,2]
[338191000,1726379472611,-531.65,0.00013543,2]
[338191001,1726379472620,-500.0,0.00013543,2]
[338191002,1726379472630,-1168.61,0.00013543,2]
[338191003,1726379472639,-500.0,0.00013543,2]
[338191004,1726379472648,-3835.54,0.00013543,2]
[338191005,1726379472659,-893.47,0.00013543,2]
[338191006,1726379472668,-26792.24,0.00013543,2]
[338191007,1726379472679,-500.0,0.00013543,2]
[338191008,1726379472688,-500.0,0.00013543,2]
[338191009,1726379472698,-6039.53,0.00013543,2]
[338191010,1726379472708,-6514.56,0.00013543,2]
[338191011,1726379472718,-500.0,0.00013543,2]
[338191012,1726379472728,-1738.93,0.00013543,2]
[338191013,1726379472737,-3311.22,0.00013543,2]
[338191014,1726379472747,-951.12,0.00013543,2]
[338191015,1726379472756,-500.0,0.00013543,2]
[338191016,1726379472765,-592.32,0.00013543,2]
[338191017,1726379472774,-3914.98,0.00013543,2]
[338191018,1726379472783,-680.98,0.00013543,2]
[338191019,1726379472793,-495.13557026,0.00013543,2]
[338191020,1726379472807,-4.86442974,0.00013543,2]
[338191021,1726379472817,-708.10534189,0.00013543,2]
[338191022,1726379472828,-348.86465811,0.00013543,2]
[338191023,1726379472837,-500.0,0.00013543,2]
[338191024,1726379472847,-1199.11,0.00013543,2]
[338191025,1726379472856,-189.4706966,0.00013543,2]
[338191026,1726379472867,-4750.1293034,0.00013543,2]
[338191027,1726379472876,-4204.48,0.00013543,2]
[338191028,1726379472885,-500.0,0.00013543,2]